[Event "Odense-ch IM-1 2018"]
[Site "Odense"]
[Date "2018.10.14"]
[Round "5"]
[White "Fries-Nielsen, Jens Ove"]
[Black "Antonsen, Mikkel"]
[Result "1/2-1/2"]
[ECO "C44"]
[WhiteElo "2370"]
[BlackElo "2429"]
[Annotator "NA"]
[PlyCount "31"]
[EventDate "2018.10.12"]
[EventType "tourn"]
[EventCountry "DEN"]
[SourceTitle "playchess.com"]
[Source "ChessBase"]
[SourceQuality "1"]
[TimeControl "40/5400+30:1800+30"]

1. e4 {[%emt 0:00:05]} e5 {[%emt 0:00:00]} 2. Nf3 {[%emt 0:00:58]} Nf6 {[%emt 0:00:12]} 3. d3 {[%emt 0:00:53]} Nc6 {[%emt 0:00:52]} 4. c4 {[%emt 0:00:14]} Bc5 {[%emt 0:00:49]} 5. h3 {[%emt 0:00:09]} d6 {[%emt 0:00:20]} 6. g3 {[%emt 0:00:44]} O-O {[%emt 0:03:20]} 7. Bg2 {[%emt 0:00:32]} Ne8 {[%emt 0:02:14]} 8. Nh4 {[%emt 0:05:46]} g6 {[%emt 0:00:29]} 9. Nc3 {[%emt 0:01:03]} Ng7 {[%emt 0:00:28]} 10. Bh6 {[%emt 0:01:41]} a6 {[%emt 0:02:53]} 11. O-O {[%emt 0:03:04]} Nd4 {[%emt 0:00:05]} 12. Kh2 {[%emt 0:05:26]} c6 {[%emt 0:02:07]} 13. Ne2 {[%emt 0:09:45]} Nxe2 {[%emt 0:05:23]} 14. Qxe2 {[%emt 0:00:06]} Re8 {[%emt 0:01:12]} 15. Nf3 {[%emt 0:07:09]} Ne6 {[%emt 0:01:03]} 16. Be3 1/2-1/2